fUSD/lending_fUSD_20240506
["ID","MTS","AMOUNT","RATE_DAILY","PERIOD"]
[326514962,1715034665219,-2306.56,0.00024931,3]
[326514963,1715034665228,-500.0,0.00024931,3]
[326514964,1715034665239,-500.0,0.00024931,3]
[326514965,1715034665249,-1371.5,0.00024931,3]
[326514966,1715034665258,-771.27,0.00024931,3]
[326514967,1715034665268,-1124.37,0.00024931,3]
[326514968,1715034665278,-1353.28,0.00024931,3]
[326514969,1715034665288,-500.0,0.00024931,3]
[326514970,1715034665297,-3005.64,0.00024931,3]
[326514971,1715034665308,-1458.71,0.00024931,3]
[326514972,1715034665318,-3870.09,0.00024931,3]
[326514973,1715034665328,-500.0,0.00024931,3]
[326514974,1715034665338,-550.27,0.00024931,3]
[326514975,1715034665348,-500.0,0.00024931,3]
[326514976,1715034665358,-1411.52,0.00024931,3]
[326514977,1715034665367,-500.0,0.00024931,3]
[326514978,1715034665377,-539.96,0.00024931,3]
[326514979,1715034665386,-1067.88,0.00024931,3]
[326514980,1715034665396,-500.0,0.00024931,3]
[326514981,1715034665406,-1681.74,0.00024931,3]
[326514982,1715034665416,-954.37,0.00024931,3]
[326514983,1715034665426,-943.25,0.00024931,3]
[326514984,1715034665435,-777.93,0.00024931,3]
[326514985,1715034665445,-1770.17,0.00024931,3]
[326514986,1715034665455,-500.0,0.00024931,3]
[326514987,1715034665464,-500.0,0.00024931,3]
[326514988,1715034665473,-500.0,0.00024931,3]
[326514989,1715034665484,-522.61,0.00024931,3]
[326514990,1715034665494,-554.18,0.00024931,3]
[326514991,1715034665504,-500.0,0.00024931,3]
[326514992,1715034665513,-500.0,0.00024931,3]
[326514993,1715034665523,-4202.38,0.00024931,3]
[326514994,1715034665533,-1618.2,0.00024931,3]
[326514995,1715034665543,-693.69,0.00024931,3]
[326514996,1715034665552,-1449.99,0.00024931,3]
[326514997,1715034665562,-1233.99,0.00024931,3]
[326514998,1715034665571,-761.1,0.00024931,3]
[326514999,1715034665580,-541.51,0.00024931,3]
[326515000,1715034665590,-1767.59,0.00024931,3]
[326515001,1715034665599,-852.89,0.00024931,3]
[326515002,1715034665608,-500.0,0.00024931,3]
[326515003,1715034665618,-962.76,0.00024931,3]
[326515004,1715034665627,-1356.39,0.00024931,3]
[326515005,1715034665637,-3495.28,0.00024931,3]
[326515006,1715034665647,-2241.75,0.00024931,3]
[326515007,1715034665658,-3753.83,0.00024931,3]
[326515008,1715034665668,-500.0,0.00024931,3]
[326515009,1715034665679,-500.0,0.00024931,3]
[326515010,1715034665688,-1050.24,0.00024931,3]
[326515011,1715034665704,-1009.0,0.00024931,3]
[326515012,1715034665714,-673.25,0.00024931,3]
[326515013,1715034665724,-672.13,0.00024931,3]
[326515014,1715034665733,-8096.72,0.00024931,3]
[326515015,1715034665743,-500.0,0.00024931,3]
[326515016,1715034665753,-2582.55,0.00024931,3]
[326515017,1715034665762,-500.0,0.00024931,3]
[326515018,1715034665772,-576.13,0.00024931,3]
[326515019,1715034665783,-500.0,0.00024931,3]
[326515020,1715034665792,-500.0,0.00024931,3]
[326515021,1715034665802,-605.97,0.00024931,3]
[326515022,1715034665812,-500.0,0.00024931,3]
[326515023,1715034665822,-500.0,0.00024931,3]
[326515024,1715034665832,-2022.32,0.00024931,3]
[326515025,1715034665841,-5537.77,0.00024931,3]
[326515026,1715034665851,-500.0,0.00024931,3]
[326515027,1715034665861,-2469.69,0.00024931,3]
[326515028,1715034665870,-500.0,0.00024931,3]
[326515029,1715034665880,-500.0,0.00024931,3]
[326515030,1715034665890,-820.18,0.00024931,3]
[326515031,1715034665899,-2418.94,0.00024931,3]
[326515032,1715034665909,-967.46,0.00024931,3]
[326515033,1715034665923,-2869.14,0.00024931,3]
[326515034,1715034665936,-608.62,0.00024931,3]
[326515035,1715034665945,-1283.26,0.00024931,3]
[326515036,1715034665955,-1033.65,0.00024931,3]
[326515037,1715034665966,-500.0,0.00024931,3]
[326515038,1715034665975,-913.3,0.00024931,3]
[326515039,1715034665985,-500.0,0.00024931,3]
[326515040,1715034665995,-1855.14,0.00024931,3]
[326515041,1715034666006,-500.0,0.00024931,3]
[326515042,1715034666016,-500.0,0.00024931,3]
[326515043,1715034666026,-1325.64,0.00024931,3]
[326515044,1715034666036,-500.0,0.00024931,3]
[326515045,1715034666045,-500.0,0.00024931,3]
[326515046,1715034666055,-1477.08,0.00024931,3]
[326515047,1715034666065,-2038.77,0.00024931,3]
[326515048,1715034666074,-500.0,0.00024931,3]
[326515049,1715034666084,-12089.86,0.00024931,3]
[326515050,1715034666094,-1519.13,0.00024931,3]
[326515051,1715034666103,-500.0,0.00024931,3]
[326515052,1715034666114,-5214.57,0.00024931,3]
[326515053,1715034666127,-564.04,0.00024931,3]
[326515054,1715034666137,-500.0,0.00024931,3]
[326515055,1715034666147,-287.63128877,0.00024931,3]
[326515056,1715034666157,-1322.76,0.00024931,3]
[326515057,1715034666168,-500.0,0.00024931,3]
[326515058,1715034666178,-691.76,0.00024931,3]
[326515059,1715034666187,-500.0,0.00024931,3]
[326515060,1715034666205,-4452.42,0.00024931,3]
[326515061,1715034666222,-500.0,0.00024931,3]
[326515062,1715034666235,-500.0,0.00024931,3]
[326515063,1715034666258,-500.22,0.00024931,3]
[326515064,1715034666277,-505.66,0.00024931,3]
[326515065,1715034666294,-500.0,0.00024931,3]
[326515066,1715034666312,-500.0,0.00024931,3]
[326515067,1715034666328,-500.0,0.00024931,3]
[326515068,1715034666344,-3420.19,0.00024931,3]
[326515069,1715034666360,-836.46,0.00024931,3]
[326515070,1715034666374,-3896.02,0.00024931,3]
[326515071,1715034666388,-500.0,0.00024931,3]
[326515072,1715034666405,-500.0,0.00024931,3]
[326515073,1715034666421,-500.0,0.00024931,3]
[326515074,1715034666437,-7576.71,0.00024931,3]
[326515075,1715034666454,-500.0,0.00024931,3]
[326515076,1715034666467,-500.0,0.00024931,3]
[326515077,1715034666479,-2804.31,0.00024931,3]
[326515078,1715034666495,-500.0,0.00024931,3]
[326515079,1715034666509,-500.0,0.00024931,3]
[326515080,1715034666522,-500.0,0.00024931,3]
[326515081,1715034666537,-500.0,0.00024931,3]
[326515082,1715034666549,-5074.95,0.00024931,3]
[326515083,1715034666561,-500.0,0.00024931,3]
[326515084,1715034666574,-4767.99,0.00024931,3]
[326515085,1715034666588,-500.0,0.00024931,3]
[326515086,1715034666607,-1368.64,0.00024931,3]
[326515087,1715034666620,-500.0,0.00024931,3]
[326515088,1715034666635,-1963.45,0.00024931,3]
[326515089,1715034666648,-3648.88,0.00024931,3]
[326515090,1715034666661,-500.0,0.00024931,3]
[326515091,1715034666675,-1290.97,0.00024931,3]
[326515092,1715034666688,-3729.21,0.00024931,3]
[326515093,1715034666702,-500.0,0.00024931,3]
[326515094,1715034666714,-1166.09,0.00024931,3]
[326515095,1715034666728,-814.49,0.00024931,3]
[326515096,1715034666742,-1964.75,0.00024931,3]
[326515097,1715034666755,-3184.8,0.00024931,3]
[326515098,1715034666769,-2549.52,0.00024931,3]
[326515099,1715034666783,-500.0,0.00024931,3]
[326515100,1715034666799,-1524.02,0.00024931,3]
[326515101,1715034666813,-520.96,0.00024931,3]
[326515102,1715034666826,-1926.59,0.00024931,3]
[326515103,1715034666840,-1625.88,0.00024931,3]
[326515104,1715034666854,-500.0,0.00024931,3]
[326515105,1715034666868,-764.55,0.00024931,3]
[326515106,1715034666882,-1104.98,0.00024931,2]
[326515107,1715034666896,-500.0,0.00024931,3]
[326515108,1715034666909,-868.15,0.00024931,3]
[326515109,1715034666926,-500.0,0.00024931,3]
[326515110,1715034666939,-7494.77,0.00024931,3]
[326515111,1715034666953,-500.0,0.00024931,3]
[326515112,1715034666968,-500.0,0.00024931,3]
[326515113,1715034666982,-5570.04,0.00024931,3]
[326515114,1715034666995,-500.0,0.00024931,3]
[326515115,1715034667011,-500.0,0.00024931,3]
[326515116,1715034667030,-1375.49,0.00024931,3]
[326515117,1715034667043,-867.59,0.00024931,3]
[326515118,1715034667058,-678.3,0.00024931,3]
[326515119,1715034667072,-1058.15,0.00024931,3]
[326515120,1715034667085,-500.0,0.00024931,3]
[326515121,1715034667099,-7773.73,0.00024931,3]
[326515122,1715034667113,-1248.89,0.00024931,3]
[326515123,1715034667130,-2113.66,0.00024931,3]
[326515124,1715034667144,-795.1,0.00024931,3]
[326515125,1715034667157,-500.0,0.00024931,3]
[326515126,1715034667171,-951.13,0.00024931,3]
[326515127,1715034667184,-833.46,0.00024931,3]
[326515128,1715034667198,-6245.17,0.00024931,3]
[326515129,1715034667211,-549.36,0.00024931,3]
[326515130,1715034667224,-500.0,0.00024931,3]
[326515131,1715034667238,-500.0,0.00024931,3]
[326515132,1715034667251,-2711.3,0.00024931,3]
[326515133,1715034667264,-1438.26,0.00024931,3]
[326515134,1715034667278,-806.2,0.00024931,3]
[326515135,1715034667291,-523.35,0.00024931,3]
[326515136,1715034667305,-1211.99,0.00024931,3]
[326515137,1715034667320,-13469.77,0.00024931,3]
[326515138,1715034667333,-29409.83,0.00024931,3]
[326515139,1715034667346,-2780.54,0.00024931,3]
[326515140,1715034667360,-500.0,0.00024931,3]
[326515141,1715034667373,-500.0,0.00024931,3]
[326515142,1715034667387,-500.0,0.00024931,3]
[326515143,1715034667400,-5472.43,0.00024931,3]
[326515144,1715034667415,-36861.48,0.00024931,3]
[326515145,1715034667428,-6280.91,0.00024931,3]
[326515146,1715034667443,-520.53,0.00024931,3]
[326515147,1715034667456,-2048.42,0.00024931,3]
[326515148,1715034667470,-2539.63,0.00024931,3]
[326515149,1715034667484,-776.04,0.00024931,3]
[326515150,1715034667499,-3424.71,0.00024931,3]
[326515151,1715034667512,-5255.45,0.00024931,3]
[326515152,1715034667526,-964.9,0.00024931,3]
[326515153,1715034667540,-1339.76,0.00024931,3]
[326515154,1715034667553,-5831.35,0.00024931,3]
[326515155,1715034667568,-742.16,0.00024931,3]
[326515156,1715034667581,-552.92,0.00024931,3]
[326515157,1715034667595,-2417.74,0.00024931,3]
[326515158,1715034667608,-709.3,0.00024931,3]
[326515159,1715034667623,-2795.6,0.00024931,3]
[326515160,1715034667636,-3204.2,0.00024931,3]
[326515161,1715034667649,-500.0,0.00024931,3]
[326515162,1715034667662,-513.23,0.00024931,3]
[326515163,1715034667677,-3652.56,0.00024931,3]
[326515164,1715034667689,-1869.75,0.00024931,3]
[326515165,1715034667706,-705.98,0.00024931,3]
[326515166,1715034667719,-744.99,0.00024931,3]
[326515167,1715034667733,-1404.0,0.00024931,3]
[326515168,1715034667745,-1503.68,0.00024931,3]
[326515169,1715034667758,-627.8,0.00024931,3]
[326515170,1715034667770,-2221.54,0.00024931,3]
[326515171,1715034667783,-500.0,0.00024931,3]
[326515172,1715034667796,-2776.46,0.00024931,3]
[326515173,1715034667809,-1758.25,0.00024931,3]
[326515174,1715034667821,-705.54,0.00024931,3]
[326515175,1715034667834,-500.0,0.00024931,3]
[326515176,1715034667848,-693.16,0.00024931,3]
[326515177,1715034667861,-2349.96,0.00024931,3]
[326515178,1715034667876,-583.78,0.00024931,3]
[326515179,1715034667889,-500.0,0.00024931,3]
[326515180,1715034667902,-2901.94,0.00024931,3]
[326515181,1715034667917,-774.47,0.00024931,3]
[326515182,1715034667934,-4188.06,0.00024931,3]
[326515183,1715034667947,-3080.91,0.00024931,3]
[326515184,1715034667960,-907.56,0.00024931,3]
[326515185,1715034667971,-2425.11,0.00024931,3]
[326515186,1715034667980,-700.61,0.00024931,3]
[326515187,1715034667990,-1872.66,0.00024931,3]
[326515188,1715034668001,-1125.62,0.00024931,3]
[326515189,1715034668011,-2608.01,0.00024931,3]
[326515190,1715034668020,-5017.36,0.00024931,3]
[326515191,1715034668030,-834.1,0.00024931,3]
[326515192,1715034668040,-1502.55,0.00024931,3]
[326515193,1715034668050,-3499.7,0.00024931,3]
[326515194,1715034668060,-2575.17,0.00024931,3]
[326515195,1715034668070,-500.0,0.00024931,3]
[326515196,1715034668079,-8703.83,0.00024931,3]
[326515197,1715034668091,-2435.59,0.00024931,3]
[326515198,1715034668101,-1120.77,0.00024931,3]
[326515199,1715034668111,-1331.94,0.00024931,3]
[326515200,1715034668123,-500.0,0.00024931,3]
[326515201,1715034668136,-568.37,0.00024931,3]
[326515202,1715034668146,-508.26,0.00024931,3]
[326515203,1715034668155,-2451.47,0.00024931,3]
[326515204,1715034668165,-943.06,0.00024931,3]
[326515205,1715034668175,-1199.37,0.00024931,3]
[326515206,1715034668184,-1323.07,0.00024931,3]
[326515207,1715034668195,-5558.85,0.00024931,3]
[326515208,1715034668206,-1829.87,0.00024931,3]
[326515209,1715034668216,-500.0,0.00024931,3]
[326515210,1715034668226,-4785.58,0.00024931,3]
[326515211,1715034668235,-3182.05,0.00024931,3]
[326515212,1715034668247,-500.0,0.00024931,3]
[326515213,1715034668257,-2100.88,0.00024931,3]
[326515214,1715034668266,-20020.5,0.00024931,3]
[326515215,1715034668276,-2330.07,0.00024931,3]
[326515216,1715034668286,-1239.2,0.00024931,3]
[326515217,1715034668295,-620.14,0.00024931,3]
[326515218,1715034668306,-500.0,0.00024931,3]
[326515219,1715034668316,-3360.38,0.00024931,3]
[326515220,1715034668327,-500.0,0.00024931,3]
[326515221,1715034668337,-2306.84,0.00024931,3]
[326515222,1715034668349,-1227.78,0.00024931,3]
[326515223,1715034668362,-2879.17,0.00024931,3]
[326515224,1715034668372,-1364.03,0.00024931,3]
[326515225,1715034668384,-717.53,0.00024931,3]
[326515226,1715034668393,-500.0,0.00024931,3]
[326515227,1715034668403,-276.0967458,0.00024931,2]
[326515228,1715034668414,-500.0,0.00024931,2]
[326515229,1715034668425,-539.96,0.00024931,3]
[326515230,1715034668434,-960.07,0.00024931,3]
[326515231,1715034668443,-1238.44,0.00024931,3]
[326515232,1715034668911,-500.0,0.00024931,3]
[326515233,1715034668946,-846.73,0.00024931,3]
[326515234,1715034668968,-1605.23,0.00024931,3]
[326515235,1715034668984,-1456.58,0.00024931,3]
[326515236,1715034668994,-500.0,0.00024931,3]
[326515237,1715034669005,-500.0,0.00024931,3]
[326515238,1715034669015,-547.62,0.00024931,3]
[326515239,1715034669024,-500.0,0.00024931,2]
[326515240,1715034669034,-3211.37,0.00024931,3]
[326515241,1715034669044,-500.0,0.00024931,3]
[326515242,1715034669054,-827.77,0.00024931,3]
[326515243,1715034669064,-500.0,0.00024931,3]
[326515244,1715034669073,-853.46,0.00024931,3]
[326515245,1715034669083,-13860.97,0.00024931,3]
[326515246,1715034669093,-500.0,0.00024931,2]
[326515247,1715034669102,-500.0,0.00024931,3]
[326515248,1715034669112,-500.0,0.00024931,3]
[326515249,1715034669123,-2961.3,0.00024931,3]
[326515250,1715034669134,-718.89,0.00024931,3]
[326515251,1715034669144,-526.66,0.00024931,3]
[326515252,1715034669153,-742.01,0.00024931,3]
[326515253,1715034669163,-500.0,0.00024931,3]
[326515254,1715034669173,-653.98,0.00024931,3]
[326515255,1715034669182,-1256.37,0.00024931,3]
[326515256,1715034669192,-7749.89,0.00024931,3]
[326515257,1715034669202,-839.89,0.00024931,3]
[326515258,1715034669212,-1134.68,0.00024931,3]
[326515259,1715034669221,-150.0,0.00024943,2]
[326515260,1715034669232,-150.0,0.00024963,2]
[326515261,1715034669241,-1082.23276055,0.00024969,2]
[326515262,1715034669251,-471.60362987,0.00025,2]
[326515263,1715034669260,-155.0,0.00025,2]
[326515264,1715034669270,-260.09587807,0.00025,2]
[326515265,1715034669280,-2218.57256714,0.00025,2]
[326515266,1715034669290,-155.0,0.00025,2]
[326515267,1715034669299,-20000.0,0.00025,2]
[326515268,1715034669309,-6541.91421318,0.00025,2]
[326515269,1715034669318,-50000.0,0.00025,3]
[326515270,1715034669328,-928.11538721,0.00025,2]
[326515271,1715034669338,-153.62123464,0.00025,2]
[326515272,1715034669347,-500.0,0.00025,2]
[326515273,1715034669357,-335.55208326,0.00025,7]
[326515274,1715034669367,-150.0,0.00025012,2]
[326515275,1715034669376,-197.35706917,0.0002503,2]
[326515276,1715034669385,-150.0,0.00025038,2]
[326515277,1715034669395,-150.0,0.00025047,2]
[326515278,1715034669404,-11214.69976273,0.00025049,2]
[326515279,1715034669414,-150.0,0.0002508,2]
[326515280,1715034669427,-2500.0,0.00025121,2]
[326515281,1715034669436,-150.0,0.00025128,2]
[326515282,1715034669446,-157.050707,0.00025148,4]
[326515283,1715034669455,-150.0,0.00025168,2]
[326515284,1715034669465,-160.0,0.00025183,2]
[326515285,1715034669474,-160.0,0.00025191,2]
[326515286,1715034669483,-150.0,0.00025194,2]
[326515287,1715034669492,-150.0,0.000252,4]
[326515288,1715034669502,-160.0,0.000252,2]
[326515289,1715034669511,-150.0,0.00025204,10]
[326515290,1715034669521,-150.0,0.00025204,10]
[326515291,1715034669531,-150.0,0.00025204,10]
[326515292,1715034669540,-5355.70438162,0.00025205,3]
[326515293,1715034669550,-667.56,0.00025205,4]
[326515294,1715034669559,-546.2,0.00025205,4]
[326515295,1715034669569,-614.07,0.00025205,4]
[326515296,1715034669579,-813.59,0.00025205,4]
[326515297,1715034669589,-1222.31,0.00025205,4]
[326515298,1715034669599,-736.41,0.00025205,4]
[326515299,1715034669609,-591.24,0.00025205,4]
[326515300,1715034669619,-572.06,0.00025205,4]
[326515301,1715034669629,-992.39,0.00025205,4]
[326515302,1715034669643,-500.0,0.00025205,4]
[326515303,1715034669652,-500.0,0.00025205,4]
[326515304,1715034669663,-500.0,0.00025205,4]
[326515305,1715034669674,-500.0,0.00025205,4]
[326515306,1715034669684,-678.8,0.00025205,4]
[326515307,1715034669694,-500.0,0.00025205,4]
[326515308,1715034669703,-500.0,0.00025205,4]
[326515309,1715034669713,-500.0,0.00025205,4]
[326515310,1715034669723,-500.0,0.00025205,4]
[326515311,1715034669734,-667.59,0.00025205,4]
[326515312,1715034669744,-799.69,0.00025205,4]
[326515313,1715034669754,-500.0,0.00025205,4]
[326515314,1715034669764,-500.0,0.00025205,4]
[326515315,1715034669775,-337.24494672,0.00025205,4]
[326515316,1715034669784,-500.0,0.00025205,4]
[326515317,1715034669794,-500.0,0.00025205,4]
[326515318,1715034669803,-500.0,0.00025205,4]
[326515319,1715034669813,-500.0,0.00025205,4]
[326515320,1715034669822,-500.0,0.00025205,4]
[326515321,1715034669832,-500.0,0.00025205,4]
[326515322,1715034669842,-527.85,0.00025205,4]
[326515323,1715034669852,-500.0,0.00025205,4]
[326515324,1715034669862,-577.6,0.00025205,4]
[326515325,1715034669871,-676.76,0.00025205,4]
[326515326,1715034669881,-500.0,0.00025205,4]
[326515327,1715034669891,-555.91,0.00025205,4]
[326515328,1715034669901,-500.0,0.00025205,4]
[326515329,1715034669911,-500.0,0.00025205,4]
[326515330,1715034669924,-500.0,0.00025205,4]
[326515331,1715034669934,-500.0,0.00025205,4]
[326515332,1715034669944,-740.05,0.00025205,4]
[326515333,1715034669954,-524.12,0.00025205,4]
[326515334,1715034669965,-500.0,0.00025205,4]
[326515335,1715034669975,-500.0,0.00025205,4]
[326515336,1715034669985,-882.75,0.00025205,4]
[326515337,1715034669994,-500.0,0.00025205,4]
[326515338,1715034670005,-999.09,0.00025205,4]
[326515339,1715034670015,-513.44,0.00025205,4]
[326515340,1715034670025,-500.0,0.00025205,4]
[326515341,1715034670034,-592.67,0.00025205,4]
[326515342,1715034670044,-500.0,0.00025205,4]
[326515343,1715034670053,-500.0,0.00025205,4]
[326515344,1715034670062,-500.0,0.00025205,4]
[326515345,1715034670072,-906.01,0.00025205,4]
[326515346,1715034670082,-540.53,0.00025205,4]
[326515347,1715034670091,-500.0,0.00025205,4]
[326515348,1715034670101,-500.0,0.00025205,4]
[326515349,1715034670111,-500.0,0.00025205,4]
[326515350,1715034670121,-500.0,0.00025205,4]
[326515351,1715034670132,-500.0,0.00025205,4]
[326515352,1715034670141,-500.0,0.00025205,4]
[326515353,1715034670151,-500.0,0.00025205,4]
[326515354,1715034670160,-500.0,0.00025205,4]
[326515355,1715034670171,-717.54,0.00025205,4]
[326515356,1715034670180,-500.0,0.00025205,4]
[326515357,1715034670190,-500.0,0.00025205,4]
[326515358,1715034670200,-500.0,0.00025205,4]
[326515359,1715034670210,-719.03,0.00025205,4]
[326515360,1715034670220,-500.0,0.00025205,4]
[326515361,1715034670229,-512.77,0.00025205,4]
[326515362,1715034670239,-750.97,0.00025205,4]
[326515363,1715034670248,-500.0,0.00025205,4]
[326515364,1715034670258,-500.0,0.00025205,4]
[326515365,1715034670267,-653.97,0.00025205,4]
[326515366,1715034670276,-500.0,0.00025205,4]
[326515367,1715034670286,-610.51,0.00025205,4]
[326515368,1715034670295,-706.27,0.00025205,4]
[326515369,1715034670305,-500.0,0.00025205,4]
[326515370,1715034670314,-500.0,0.00025205,4]
[326515371,1715034670323,-559.66,0.00025205,4]
[326515372,1715034670333,-500.0,0.00025205,4]
[326515373,1715034670342,-813.73,0.00025205,4]
[326515374,1715034670351,-500.0,0.00025205,4]
[326515375,1715034670361,-756.33,0.00025205,4]
[326515376,1715034670370,-621.77,0.00025205,4]
[326515377,1715034670380,-1039.43,0.00025205,4]
[326515378,1715034670389,-500.0,0.00025205,4]
[326515379,1715034670398,-500.0,0.00025205,4]
[326515380,1715034670408,-500.0,0.00025205,4]
[326515381,1715034670418,-774.84,0.00025205,4]
[326515382,1715034670427,-500.0,0.00025205,4]
[326515383,1715034670437,-1787.85,0.00025205,4]
[326515384,1715034670448,-1085.39,0.00025205,4]
[326515385,1715034670458,-500.0,0.00025205,4]
[326515386,1715034670467,-1161.28,0.00025205,4]
[326515387,1715034670476,-500.0,0.00025205,4]
[326515388,1715034670486,-500.0,0.00025205,4]
[326515389,1715034670495,-500.0,0.00025205,4]
[326515390,1715034670506,-500.0,0.00025205,4]
[326515391,1715034670515,-729.8,0.00025205,4]
[326515392,1715034670525,-943.06,0.00025205,4]
[326515393,1715034670535,-500.0,0.00025205,4]
[326515394,1715034670544,-500.0,0.00025205,4]
[326515395,1715034670554,-500.0,0.00025205,4]
[326515396,1715034670563,-531.74,0.00025205,4]
[326515397,1715034670572,-500.0,0.00025205,4]
[326515398,1715034670583,-500.0,0.00025205,4]
[326515399,1715034670593,-575.0,0.00025205,4]
[326515400,1715034670603,-500.0,0.00025205,4]
[326515401,1715034670612,-500.0,0.00025205,4]
[326515402,1715034670622,-500.0,0.00025205,4]
[326515403,1715034670632,-1034.84,0.00025205,4]
[326515404,1715034670642,-771.04,0.00025205,4]
[326515405,1715034670652,-500.0,0.00025205,4]
[326515406,1715034670662,-843.88,0.00025205,4]
[326515407,1715034670672,-500.0,0.00025205,4]
[326515408,1715034670682,-584.27668739,0.00025205,4]
[326515409,1715034670692,-500.0,0.00025205,4]
[326515410,1715034670702,-519.73461696,0.00025205,4]
[326515411,1715034670711,-719.62,0.00025205,4]
[326515412,1715034670720,-500.0,0.00025205,4]
[326515413,1715034670730,-500.0,0.00025205,4]
[326515414,1715034670739,-1095.13,0.00025205,4]
[326515415,1715034670749,-500.0,0.00025205,4]
[326515416,1715034670758,-1235.06,0.00025205,4]
[326515417,1715034670768,-500.0,0.00025205,4]
[326515418,1715034670777,-500.0,0.00025205,4]
[326515419,1715034670787,-500.0,0.00025205,4]
[326515420,1715034670796,-519.9,0.00025205,4]
[326515421,1715034670806,-807.82,0.00025205,4]
[326515422,1715034670816,-500.0,0.00025205,4]
[326515423,1715034670826,-500.0,0.00025205,4]
[326515424,1715034670836,-500.0,0.00025205,4]
[326515425,1715034670846,-500.0,0.00025205,4]
[326515426,1715034670855,-500.0,0.00025205,4]
[326515427,1715034670864,-1121.31,0.00025205,4]
[326515428,1715034670874,-691.21,0.00025205,4]
[326515429,1715034670883,-500.0,0.00025205,4]
[326515430,1715034670892,-512.2,0.00025205,4]
[326515431,1715034670903,-500.0,0.00025205,4]
[326515432,1715034670913,-500.0,0.00025205,4]
[326515433,1715034670929,-500.0,0.00025205,4]
[326515434,1715034670938,-500.0,0.00025205,4]
[326515435,1715034670947,-500.0,0.00025205,4]
[326515436,1715034670957,-500.0,0.00025205,4]
[326515437,1715034670966,-500.0,0.00025205,4]
[326515438,1715034670975,-500.0,0.00025205,4]
[326515439,1715034670985,-966.15,0.00025205,4]
[326515440,1715034670994,-911.41,0.00025205,4]
[326515441,1715034671005,-653.87,0.00025205,4]
[326515442,1715034671015,-1155.74,0.00025205,4]
[326515443,1715034671024,-797.82,0.00025205,4]
[326515444,1715034671034,-500.0,0.00025205,4]
[326515445,1715034671044,-1122.42,0.00025205,4]
[326515446,1715034671054,-1306.66,0.00025205,4]
[326515447,1715034671063,-337.16417585,0.00025205,4]
[326515448,1715034671073,-841.13,0.00025205,4]
[326515449,1715034671082,-573.42,0.00025205,4]
[326515450,1715034671092,-500.0,0.00025205,4]
[326515451,1715034671101,-1864.87,0.00025205,4]
[326515452,1715034671111,-763.03,0.00025205,4]
[326515453,1715034671120,-500.0,0.00025205,4]
[326515454,1715034671131,-1343.31,0.00025205,4]
[326515455,1715034671141,-793.03,0.00025205,4]
[326515456,1715034671151,-500.0,0.00025205,4]
[326515457,1715034671161,-557.89239703,0.00025205,4]
[326515458,1715034671172,-749.97,0.00025205,4]
[326515459,1715034671182,-500.0,0.00025205,4]
[326515460,1715034671191,-500.0,0.00025205,4]
[326515461,1715034671202,-500.0,0.00025205,4]